[Event "Titled Tuesday Blitz January 03 Early 2023"]
[White "Dinu, Dumitru-Daniel"]
[Black "Fernandez Guillen, Ernesto J."]
[WhiteFideId "1208403"]
[BlackFideId "3512428"]
[WhiteElo "2203"]
[BlackElo "2477"]
[Result "0-1"]
[Round "01"]
[TimeControl "180+2"]
[Date "2023.01.03"]
[WhiteClock "0:00:04"]
[BlackClock "0:00:14"]

1. e4 {[%clk 0:03:00]}  e5 {[%clk 0:02:56]} 2. Nf3 {[%clk 0:03:00]}  Nc6 {[%clk 0:02:55]} 3. Bb5 {[%clk 0:03:00]}  f5 {[%clk 0:02:56]} 4. d3 {[%clk 0:02:43]}  fxe4 {[%clk 0:02:56]} 5. dxe4 {[%clk 0:02:43]}  Nf6 {[%clk 0:02:56]} 6. Nc3 {[%clk 0:02:43]}  d6 {[%clk 0:02:56]} 7. O-O {[%clk 0:02:43]}  Bg4 {[%clk 0:02:56]} 8. Bg5 {[%clk 0:02:38]}  Be7 {[%clk 0:02:55]} 9. Bxf6 {[%clk 0:02:14]}  Bxf6 {[%clk 0:02:56]} 10. h3 {[%clk 0:02:14]}  Bh5 {[%clk 0:02:56]} 11. Bxc6+ {[%clk 0:02:09]}  bxc6 {[%clk 0:02:56]} 12. Qd3 {[%clk 0:02:08]}  O-O {[%clk 0:02:55]} 13. Nh2 {[%clk 0:02:04]}  Kh8 {[%clk 0:02:53]} 14. Ne2 {[%clk 0:01:46]}  Bg6 {[%clk 0:02:47]} 15. Qc4 {[%clk 0:01:35]}  Qe8 {[%clk 0:02:46]} 16. Nc3 {[%clk 0:01:27]}  Bg5 {[%clk 0:02:45]} 17. Rad1 {[%clk 0:01:24]}  Rb8 {[%clk 0:02:41]} 18. b3 {[%clk 0:01:23]}  a5 {[%clk 0:02:37]} 19. Qa6 {[%clk 0:01:18]}  Ra8 {[%clk 0:02:27]} 20. Qc4 {[%clk 0:01:15]}  Bf7 {[%clk 0:02:22]} 21. Qd3 {[%clk 0:01:13]}  Be6 {[%clk 0:02:21]} 22. a4 {[%clk 0:01:09]}  Qh5 {[%clk 0:02:00]} 23. Qe2 {[%clk 0:01:05]}  Qg6 {[%clk 0:01:59]} 24. Rd3 {[%clk 0:00:55]}  Bf4 {[%clk 0:01:54]} 25. Kh1 {[%clk 0:00:51]}  h5 {[%clk 0:01:25]} 26. Rf3 {[%clk 0:00:42]}  Rf6 {[%clk 0:01:23]} 27. Nd1 {[%clk 0:00:38]}  Raf8 {[%clk 0:01:21]} 28. Rg1 {[%clk 0:00:32]}  d5 {[%clk 0:01:19]} 29. g3 {[%clk 0:00:22]}  dxe4 {[%clk 0:01:12]} 30. Rc3 {[%clk 0:00:22]}  Bh6 {[%clk 0:01:11]} 31. Rxc6 {[%clk 0:00:21]}  e3 {[%clk 0:00:58]} 32. f3 {[%clk 0:00:16]}  h4 {[%clk 0:00:25]} 33. g4 {[%clk 0:00:15]}  Bd5 {[%clk 0:00:10]} 34. Rxf6 {[%clk 0:00:16]}  Rxf6 {[%clk 0:00:10]} 35. Rf1 {[%clk 0:00:15]}  Qg5 {[%clk 0:00:09]} 36. c4 {[%clk 0:00:14]}  Bc6 {[%clk 0:00:09]} 37. Nc3 {[%clk 0:00:11]}  Qf4 {[%clk 0:00:08]} 38. Nd5 {[%clk 0:00:11]}  Qg3 {[%clk 0:00:07]} 39. Nxf6 {[%clk 0:00:11]}  gxf6 {[%clk 0:00:08]} 40. Qg2 {[%clk 0:00:10]}  e2 {[%clk 0:00:07]} 41. Qxe2 {[%clk 0:00:10]}  Qxh3 {[%clk 0:00:08]} 42. Qg2 {[%clk 0:00:10]}  Qg3 {[%clk 0:00:08]} 43. Qxg3 {[%clk 0:00:09]}  hxg3 {[%clk 0:00:09]} 44. Kg2 {[%clk 0:00:09]}  gxh2 {[%clk 0:00:09]} 45. Kxh2 {[%clk 0:00:10]}  Bf4+ {[%clk 0:00:09]} 46. Kg2 {[%clk 0:00:10]}  Kg7 {[%clk 0:00:09]} 47. Rd1 {[%clk 0:00:11]}  Kf7 {[%clk 0:00:10]} 48. Rd8 {[%clk 0:00:11]}  Ke6 {[%clk 0:00:10]} 49. Rc8 {[%clk 0:00:10]}  Kd7 {[%clk 0:00:09]} 50. Rf8 {[%clk 0:00:10]}  Bg5 {[%clk 0:00:10]} 51. Rf7+ {[%clk 0:00:10]}  Kd6 {[%clk 0:00:10]} 52. Rf8 {[%clk 0:00:10]}  Bd7 {[%clk 0:00:10]} 53. Ra8 {[%clk 0:00:10]}  Bd2 {[%clk 0:00:10]} 54. Rf8 {[%clk 0:00:10]}  Ke7 {[%clk 0:00:11]} 55. Rh8 {[%clk 0:00:10]}  Be8 {[%clk 0:00:11]} 56. Rh7+ {[%clk 0:00:09]}  Bf7 {[%clk 0:00:12]} 57. Rh8 {[%clk 0:00:10]}  Bb4 {[%clk 0:00:12]} 58. Rc8 {[%clk 0:00:09]}  Kd7 {[%clk 0:00:12]} 59. Rb8 {[%clk 0:00:09]}  Bg6 {[%clk 0:00:12]} 60. Rg8 {[%clk 0:00:08]}  Bc2 {[%clk 0:00:12]} 61. Rg7+ {[%clk 0:00:09]}  Kd6 {[%clk 0:00:13]} 62. Rf7 {[%clk 0:00:09]}  Bxb3 {[%clk 0:00:13]} 63. Rxf6+ {[%clk 0:00:10]}  Kc5 {[%clk 0:00:13]} 64. Re6 {[%clk 0:00:09]}  Kd4 {[%clk 0:00:13]} 65. Rc6 {[%clk 0:00:09]}  Bxc4 {[%clk 0:00:13]} 66. Rxc7 {[%clk 0:00:09]}  Bb3 {[%clk 0:00:14]} 67. g5 {[%clk 0:00:07]}  Bxa4 {[%clk 0:00:14]} 68. g6 {[%clk 0:00:07]}  Bb3 {[%clk 0:00:14]} 69. g7 {[%clk 0:00:06]}  a4 {[%clk 0:00:14]} 70. Rb7 {[%clk 0:00:07]}  Kc3 {[%clk 0:00:14]} 71. Rc7+ {[%clk 0:00:07]}  Kb2 {[%clk 0:00:13]} 72. Rb7 {[%clk 0:00:07]}  Ka3 {[%clk 0:00:14]} 73. Rb8 {[%clk 0:00:07]}  Ba2 {[%clk 0:00:13]} 74. g8=Q {[%clk 0:00:07]}  Bxg8 {[%clk 0:00:13]} 75. Rxg8 {[%clk 0:00:08]}  Kb3 {[%clk 0:00:14]} 76. Ra8 {[%clk 0:00:08]}  a3 {[%clk 0:00:14]} 77. Kg3 {[%clk 0:00:08]}  a2 {[%clk 0:00:14]} 78. Rxa2 {[%clk 0:00:06]}  Kxa2 {[%clk 0:00:14]} 79. Kg4 {[%clk 0:00:05]}  Bd2 {[%clk 0:00:13]} 80. Kg3 {[%clk 0:00:04]}  Bf4+ {[%clk 0:00:14]} 0-1


[Site "https://www.chess.com"]

[Event "Titled Tuesday Blitz January 03 Early 2023"]
[White "Concio, Michael Jr."]
[Black "Golubovskis, Maksims"]
[WhiteFideId "5217873"]
[BlackFideId "11608528"]
[WhiteElo "2395"]
[BlackElo "2176"]
[Result "0-1"]
[Round "01"]
[TimeControl "180+2"]
[Date "2023.01.03"]
[WhiteClock "0:00:04"]
[BlackClock "0:01:08"]

1. e4 {[%clk 0:03:00]}  c5 {[%clk 0:02:59]} 2. Nf3 {[%clk 0:03:00]}  Nf6 {[%clk 0:03:00]} 3. d4 {[%clk 0:03:00]}  Nxe4 {[%clk 0:03:00]} 4. Bd3 {[%clk 0:02:59]}  d5 {[%clk 0:03:00]} 5. O-O {[%clk 0:02:57]}  Nc6 {[%clk 0:03:00]} 6. dxc5 {[%clk 0:02:50]}  Nxc5 {[%clk 0:03:00]} 7. Be2 {[%clk 0:02:50]}  e5 {[%clk 0:02:54]} 8. b4 {[%clk 0:02:47]}  Nxb4 {[%clk 0:02:34]} 9. Nxe5 {[%clk 0:02:47]}  Bd6 {[%clk 0:02:35]} 10. Bb2 {[%clk 0:02:47]}  O-O {[%clk 0:02:35]} 11. Nd2 {[%clk 0:02:39]}  Nc6 {[%clk 0:02:34]} 12. Ndf3 {[%clk 0:02:37]}  Be6 {[%clk 0:02:24]} 13. Nxc6 {[%clk 0:02:20]}  bxc6 {[%clk 0:02:22]} 14. Qd4 {[%clk 0:02:21]}  f6 {[%clk 0:02:17]} 15. Ng5 {[%clk 0:02:16]}  Qd7 {[%clk 0:02:05]} 16. Nxe6 {[%clk 0:02:09]}  Nxe6 {[%clk 0:02:05]} 17. Qh4 {[%clk 0:02:01]}  Be5 {[%clk 0:02:05]} 18. Rab1 {[%clk 0:01:50]}  Rab8 {[%clk 0:01:50]} 19. Ba3 {[%clk 0:01:45]}  Rfe8 {[%clk 0:01:47]} 20. Bg4 {[%clk 0:01:01]}  Qf7 {[%clk 0:01:42]} 21. Qh3 {[%clk 0:00:54]}  Nf4 {[%clk 0:01:35]} 22. Qf3 {[%clk 0:00:45]}  f5 {[%clk 0:01:36]} 23. Bh3 {[%clk 0:00:43]}  g5 {[%clk 0:01:36]} 24. g4 {[%clk 0:00:07]}  h5 {[%clk 0:01:23]} 25. Rxb8 {[%clk 0:00:06]}  Bxb8 {[%clk 0:01:21]} 26. Bg2 {[%clk 0:00:06]}  hxg4 {[%clk 0:01:15]} 27. Qb3 {[%clk 0:00:06]}  Qc7 {[%clk 0:01:08]} 28. h3 {[%clk 0:00:04]}  Ne2+ {[%clk 0:01:08]} 0-1


[Site "https://www.chess.com"]

[Event "Titled Tuesday Blitz January 03 Early 2023"]
[White "Lavrik, Dmitry"]
[Black "Sjoberg, Isak"]
[WhiteFideId "24113190"]
[BlackFideId "1521640"]
[WhiteElo "2414"]
[BlackElo "2308"]
[Result "1-0"]
[Round "01"]
[TimeControl "180+2"]
[Date "2023.01.03"]
[WhiteClock "0:00:10"]
[BlackClock "0:00:17"]

1. e4 {[%clk 0:02:39]}  e5 {[%clk 0:02:59]} 2. Nf3 {[%clk 0:02:36]}  Nc6 {[%clk 0:02:59]} 3. Bc4 {[%clk 0:02:21]}  Nf6 {[%clk 0:02:59]} 4. Ng5 {[%clk 0:02:21]}  d5 {[%clk 0:02:58]} 5. exd5 {[%clk 0:02:21]}  Na5 {[%clk 0:02:59]} 6. Bb5+ {[%clk 0:02:21]}  c6 {[%clk 0:03:00]} 7. dxc6 {[%clk 0:02:22]}  bxc6 {[%clk 0:03:01]} 8. Bd3 {[%clk 0:02:22]}  Nd5 {[%clk 0:02:50]} 9. Nf3 {[%clk 0:02:21]}  Bd6 {[%clk 0:02:50]} 10. O-O {[%clk 0:02:21]}  O-O {[%clk 0:02:51]} 11. Re1 {[%clk 0:02:22]}  f5 {[%clk 0:02:49]} 12. c4 {[%clk 0:02:19]}  Nf4 {[%clk 0:02:44]} 13. Bf1 {[%clk 0:02:20]}  e4 {[%clk 0:02:40]} 14. d4 {[%clk 0:02:19]}  exf3 {[%clk 0:02:32]} 15. Qxf3 {[%clk 0:02:20]}  Ng6 {[%clk 0:02:27]} 16. c5 {[%clk 0:01:51]}  Bb8 {[%clk 0:02:22]} 17. b4 {[%clk 0:01:41]}  Nh4 {[%clk 0:02:01]} 18. Qh5 {[%clk 0:01:22]}  Qxd4 {[%clk 0:01:49]} 19. bxa5 {[%clk 0:01:22]}  Qxa1 {[%clk 0:01:28]} 20. Bc4+ {[%clk 0:01:22]}  Kh8 {[%clk 0:01:28]} 21. Qxh4 {[%clk 0:00:36]}  Qxb1 {[%clk 0:01:09]} 22. Qe7 {[%clk 0:00:28]}  Bd6 {[%clk 0:01:06]} 23. cxd6 {[%clk 0:00:23]}  Bb7 {[%clk 0:01:03]} 24. d7 {[%clk 0:00:23]}  h6 {[%clk 0:00:50]} 25. Bb3 {[%clk 0:00:16]}  Rad8 {[%clk 0:00:47]} 26. Rd1 {[%clk 0:00:14]}  Kh7 {[%clk 0:00:44]} 27. Bxh6 {[%clk 0:00:12]}  Qb2 {[%clk 0:00:44]} 28. Bg5 {[%clk 0:00:12]}  c5 {[%clk 0:00:33]} 29. Qe3 {[%clk 0:00:12]}  c4 {[%clk 0:00:25]} 30. Bxc4 {[%clk 0:00:12]}  Qc2 {[%clk 0:00:22]} 31. Bb3 {[%clk 0:00:12]}  Qc6 {[%clk 0:00:21]} 32. Qh3+ {[%clk 0:00:11]}  Kg6 {[%clk 0:00:21]} 33. Bxd8 {[%clk 0:00:11]}  Rxd8 {[%clk 0:00:21]} 34. Qg3+ {[%clk 0:00:12]}  Kh7 {[%clk 0:00:19]} 35. Qh4+ {[%clk 0:00:11]}  Kg6 {[%clk 0:00:19]} 36. Qg3+ {[%clk 0:00:10]}  Kf6 {[%clk 0:00:18]} 37. Rd6+ {[%clk 0:00:09]}  Qxd6 {[%clk 0:00:19]} 38. Qxd6+ {[%clk 0:00:09]}  Kg5 {[%clk 0:00:19]} 39. h4+ {[%clk 0:00:10]}  Kh5 {[%clk 0:00:19]} 40. Qe7 {[%clk 0:00:10]}  Rh8 {[%clk 0:00:17]} 41. Qg5# {[%clk 0:00:10]} 1-0


[Site "https://www.chess.com"]

[Event "Titled Tuesday Blitz January 03 Early 2023"]
[White "Mazurkiewicz, Michal"]
[Black "Orozbaev, Eldiar"]
[WhiteFideId "1124943"]
[BlackFideId "13802240"]
[WhiteElo "2145"]
[BlackElo "2235"]
[Result "1-0"]
[Round "01"]
[TimeControl "180+2"]
[Date "2023.01.03"]
[WhiteClock "0:00:21"]
[BlackClock "0:00:08"]

1. e4 {[%clk 0:02:59]}  e6 {[%clk 0:03:00]} 2. d3 {[%clk 0:02:59]}  d5 {[%clk 0:03:01]} 3. Nd2 {[%clk 0:02:59]}  Nc6 {[%clk 0:03:01]} 4. Ngf3 {[%clk 0:02:58]}  Nf6 {[%clk 0:03:01]} 5. c3 {[%clk 0:02:58]}  dxe4 {[%clk 0:02:57]} 6. dxe4 {[%clk 0:02:58]}  e5 {[%clk 0:02:56]} 7. Bb5 {[%clk 0:02:51]}  Bd6 {[%clk 0:02:55]} 8. O-O {[%clk 0:02:51]}  O-O {[%clk 0:01:54]} 9. Re1 {[%clk 0:02:49]}  Qe7 {[%clk 0:01:53]} 10. Nc4 {[%clk 0:02:45]}  Rd8 {[%clk 0:01:51]} 11. Nxd6 {[%clk 0:02:43]}  Rxd6 {[%clk 0:01:51]} 12. Qc2 {[%clk 0:02:43]}  a6 {[%clk 0:01:43]} 13. Bf1 {[%clk 0:02:39]}  Bg4 {[%clk 0:01:37]} 14. Nd2 {[%clk 0:02:30]}  Rad8 {[%clk 0:01:33]} 15. Nc4 {[%clk 0:02:26]}  R6d7 {[%clk 0:01:30]} 16. Bg5 {[%clk 0:02:17]}  h6 {[%clk 0:01:22]} 17. Bh4 {[%clk 0:02:17]}  g5 {[%clk 0:01:20]} 18. Bg3 {[%clk 0:02:17]}  Nh5 {[%clk 0:01:21]} 19. Ne3 {[%clk 0:02:12]}  Be6 {[%clk 0:01:15]} 20. Rad1 {[%clk 0:02:02]}  Nxg3 {[%clk 0:01:14]} 21. hxg3 {[%clk 0:02:01]}  Qc5 {[%clk 0:01:08]} 22. a3 {[%clk 0:01:50]}  a5 {[%clk 0:01:00]} 23. b4 {[%clk 0:01:37]}  axb4 {[%clk 0:00:59]} 24. axb4 {[%clk 0:01:38]}  Nxb4 {[%clk 0:00:53]} 25. Rxd7 {[%clk 0:01:31]}  Nxc2 {[%clk 0:00:53]} 26. Rxd8+ {[%clk 0:01:30]}  Kg7 {[%clk 0:00:54]} 27. Nxc2 {[%clk 0:01:28]}  Qxc3 {[%clk 0:00:54]} 28. Re2 {[%clk 0:00:50]}  b5 {[%clk 0:00:48]} 29. Ne3 {[%clk 0:00:47]}  b4 {[%clk 0:00:42]} 30. Rc2 {[%clk 0:00:47]}  Qa1 {[%clk 0:00:29]} 31. Rxc7 {[%clk 0:00:47]}  b3 {[%clk 0:00:29]} 32. Rd6 {[%clk 0:00:37]}  b2 {[%clk 0:00:07]} 33. Rxe6 {[%clk 0:00:36]}  b1=Q {[%clk 0:00:07]} 34. Nf5+ {[%clk 0:00:36]}  Kg8 {[%clk 0:00:07]} 35. Rc8+ {[%clk 0:00:21]}  Kh7 {[%clk 0:00:08]} 36. Rxh6# {[%clk 0:00:21]} 1-0


[Site "https://www.chess.com"]

[Event "Titled Tuesday Blitz January 03 Early 2023"]
[White "Subelj, Jan"]
[Black "Buscar, Michael"]
[WhiteFideId "14618583"]
[BlackFideId "2603616"]
[WhiteElo "2513"]
[BlackElo "2041"]
[Result "1-0"]
[Round "01"]
[TimeControl "180+2"]
[Date "2023.01.03"]
[WhiteClock "0:00:48"]
[BlackClock "0:00:01"]

1. d3 {[%clk 0:02:59]}  Nf6 {[%clk 0:02:55]} 2. c4 {[%clk 0:02:58]}  g6 {[%clk 0:02:54]} 3. b3 {[%clk 0:02:57]}  Bg7 {[%clk 0:02:54]} 4. Bb2 {[%clk 0:02:57]}  c5 {[%clk 0:02:49]} 5. Nf3 {[%clk 0:02:56]}  Nc6 {[%clk 0:02:41]} 6. Nbd2 {[%clk 0:02:54]}  d6 {[%clk 0:02:36]} 7. g3 {[%clk 0:02:53]}  O-O {[%clk 0:02:33]} 8. Bg2 {[%clk 0:02:53]}  Bg4 {[%clk 0:02:32]} 9. O-O {[%clk 0:02:54]}  Qd7 {[%clk 0:02:32]} 10. Re1 {[%clk 0:02:49]}  Bh3 {[%clk 0:02:27]} 11. Bh1 {[%clk 0:02:49]}  Rab8 {[%clk 0:02:26]} 12. Qc1 {[%clk 0:02:43]}  b5 {[%clk 0:02:24]} 13. cxb5 {[%clk 0:02:37]}  Rxb5 {[%clk 0:02:23]} 14. Nc4 {[%clk 0:02:27]}  e5 {[%clk 0:02:08]} 15. Ng5 {[%clk 0:02:24]}  Nd4 {[%clk 0:02:03]} 16. Nxh3 {[%clk 0:02:16]}  Qxh3 {[%clk 0:02:02]} 17. Bg2 {[%clk 0:02:16]}  Qe6 {[%clk 0:01:57]} 18. e3 {[%clk 0:02:15]}  Nf5 {[%clk 0:01:54]} 19. Qc2 {[%clk 0:02:09]}  Nd7 {[%clk 0:01:34]} 20. Rad1 {[%clk 0:02:02]}  d5 {[%clk 0:01:24]} 21. Nd2 {[%clk 0:01:56]}  Nd6 {[%clk 0:01:16]} 22. e4 {[%clk 0:01:46]}  d4 {[%clk 0:01:14]} 23. Rc1 {[%clk 0:01:45]}  Rfb8 {[%clk 0:01:07]} 24. a4 {[%clk 0:01:33]}  R5b7 {[%clk 0:01:00]} 25. Ba3 {[%clk 0:01:32]}  Bh6 {[%clk 0:01:01]} 26. Red1 {[%clk 0:01:18]}  Bxd2 {[%clk 0:00:58]} 27. Qxd2 {[%clk 0:01:19]}  Rxb3 {[%clk 0:00:53]} 28. Bxc5 {[%clk 0:01:19]}  Nxc5 {[%clk 0:00:41]} 29. Rxc5 {[%clk 0:01:20]}  Rb2 {[%clk 0:00:41]} 30. Qc1 {[%clk 0:01:09]}  Qa2 {[%clk 0:00:35]} 31. Rf1 {[%clk 0:01:01]}  Qxa4 {[%clk 0:00:24]} 32. Qg5 {[%clk 0:00:51]}  Rb1 {[%clk 0:00:05]} 33. Qxe5 {[%clk 0:00:49]}  Rxf1+ {[%clk 0:00:04]} 34. Bxf1 {[%clk 0:00:50]}  Rb6 {[%clk 0:00:01]} 35. Rd5 {[%clk 0:00:48]} 1-0


[Site "https://www.chess.com"]

[Event "Titled Tuesday Blitz January 03 Early 2023"]
[White "Bashirli, Nail"]
[Black "Real_taiatai"]
[WhiteFideId "13406809"]
[WhiteElo "2326"]
[BlackElo "2390"]
[Result "1-0"]
[Round "01"]
[TimeControl "180+2"]
[Date "2023.01.03"]
[WhiteClock "0:00:10"]
[BlackClock "0:00:14"]

1. e4 {[%clk 0:02:47]}  c5 {[%clk 0:02:58]} 2. Nc3 {[%clk 0:02:39]}  Nc6 {[%clk 0:02:56]} 3. Bb5 {[%clk 0:02:34]}  g6 {[%clk 0:02:54]} 4. Nge2 {[%clk 0:01:29]}  Bg7 {[%clk 0:02:53]} 5. O-O {[%clk 0:01:28]}  e6 {[%clk 0:02:44]} 6. d3 {[%clk 0:01:25]}  Nge7 {[%clk 0:02:44]} 7. Be3 {[%clk 0:01:23]}  d6 {[%clk 0:02:45]} 8. Qd2 {[%clk 0:01:23]}  h6 {[%clk 0:02:39]} 9. f4 {[%clk 0:01:19]}  f5 {[%clk 0:02:39]} 10. Rae1 {[%clk 0:01:15]}  O-O {[%clk 0:02:36]} 11. d4 {[%clk 0:01:07]}  a6 {[%clk 0:01:50]} 12. Bxc6 {[%clk 0:01:05]}  Nxc6 {[%clk 0:01:51]} 13. dxc5 {[%clk 0:00:49]}  dxc5 {[%clk 0:01:52]} 14. Qxd8 {[%clk 0:00:46]}  Rxd8 {[%clk 0:01:53]} 15. Bxc5 {[%clk 0:00:45]}  Rd2 {[%clk 0:01:52]} 16. Rc1 {[%clk 0:00:40]}  fxe4 {[%clk 0:01:52]} 17. Rfd1 {[%clk 0:00:29]}  Rd7 {[%clk 0:01:43]} 18. Na4 {[%clk 0:00:17]}  Rb8 {[%clk 0:00:57]} 19. Nb6 {[%clk 0:00:13]}  Rf7 {[%clk 0:00:24]} 20. Bd6 {[%clk 0:00:13]}  Bxb2 {[%clk 0:00:22]} 21. Rb1 {[%clk 0:00:11]}  Bf6 {[%clk 0:00:22]} 22. Bxb8 {[%clk 0:00:11]}  Nxb8 {[%clk 0:00:23]} 23. Nxc8 {[%clk 0:00:12]}  Rc7 {[%clk 0:00:22]} 24. Nd6 {[%clk 0:00:11]}  Rxc2 {[%clk 0:00:21]} 25. Nd4 {[%clk 0:00:11]}  Rxa2 {[%clk 0:00:19]} 26. Rxb7 {[%clk 0:00:10]}  Bxd4+ {[%clk 0:00:18]} 27. Rxd4 {[%clk 0:00:11]}  Nc6 {[%clk 0:00:19]} 28. Rc4 {[%clk 0:00:11]}  Nd8 {[%clk 0:00:15]} 29. Rc8 {[%clk 0:00:11]}  Ra1+ {[%clk 0:00:13]} 30. Kf2 {[%clk 0:00:11]}  e3+ {[%clk 0:00:14]} 31. Kg3 {[%clk 0:00:10]}  Ra3 {[%clk 0:00:14]} 32. Rxd8# {[%clk 0:00:10]} 1-0


[Site "https://www.chess.com"]

[Event "Titled Tuesday Blitz January 03 Early 2023"]
[White "Korchmar, Vasiliy"]
[Black "Gatterer, Florian"]
[WhiteFideId "24131750"]
[BlackFideId "811688"]
[WhiteElo "2438"]
[BlackElo "2170"]
[Result "0-1"]
[Round "01"]
[TimeControl "180+2"]
[Date "2023.01.03"]
[WhiteClock "0:00:02"]
[BlackClock "0:00:55"]

1. e4 {[%clk 0:02:58]}  e5 {[%clk 0:03:00]} 2. Nf3 {[%clk 0:02:58]}  Nc6 {[%clk 0:03:00]} 3. Bc4 {[%clk 0:02:58]}  Bc5 {[%clk 0:03:00]} 4. c3 {[%clk 0:02:58]}  Nf6 {[%clk 0:03:00]} 5. d3 {[%clk 0:02:58]}  d6 {[%clk 0:02:59]} 6. Bg5 {[%clk 0:02:58]}  h6 {[%clk 0:02:59]} 7. Bh4 {[%clk 0:02:58]}  g5 {[%clk 0:02:59]} 8. Bg3 {[%clk 0:02:58]}  a6 {[%clk 0:02:51]} 9. O-O {[%clk 0:02:57]}  Qe7 {[%clk 0:02:51]} 10. Nbd2 {[%clk 0:02:34]}  Bg4 {[%clk 0:02:49]} 11. b4 {[%clk 0:02:32]}  Bb6 {[%clk 0:02:46]} 12. a4 {[%clk 0:02:32]}  O-O {[%clk 0:02:39]} 13. Kh1 {[%clk 0:02:22]}  Kg7 {[%clk 0:02:38]} 14. Qc2 {[%clk 0:02:18]}  Be6 {[%clk 0:02:36]} 15. Rae1 {[%clk 0:02:09]}  Nh5 {[%clk 0:02:36]} 16. Nb3 {[%clk 0:01:49]}  Nf4 {[%clk 0:02:33]} 17. h3 {[%clk 0:00:58]}  Kh8 {[%clk 0:02:27]} 18. Bxe6 {[%clk 0:00:55]}  fxe6 {[%clk 0:02:18]} 19. d4 {[%clk 0:00:56]}  Nxh3 {[%clk 0:02:08]} 20. dxe5 {[%clk 0:00:52]}  Rxf3 {[%clk 0:01:54]} 21. gxf3 {[%clk 0:00:49]}  Nxe5 {[%clk 0:01:50]} 22. Bxe5+ {[%clk 0:00:34]}  dxe5 {[%clk 0:01:47]} 23. c4 {[%clk 0:00:32]}  Qf7 {[%clk 0:01:39]} 24. Qc3 {[%clk 0:00:28]}  Nf4 {[%clk 0:01:32]} 25. Qxe5+ {[%clk 0:00:25]}  Kh7 {[%clk 0:01:29]} 26. Rd1 {[%clk 0:00:18]}  Qh5+ {[%clk 0:01:17]} 27. Kg1 {[%clk 0:00:18]}  Qxf3 {[%clk 0:01:00]} 28. Rd7+ {[%clk 0:00:16]}  Kg6 {[%clk 0:01:00]} 29. Qg7+ {[%clk 0:00:06]}  Kh5 {[%clk 0:00:57]} 30. Qf7+ {[%clk 0:00:06]}  Kh4 {[%clk 0:00:56]} 31. Kh2 {[%clk 0:00:02]}  Qg2# {[%clk 0:00:55]} 0-1


[Site "https://www.chess.com"]

[Event "Titled Tuesday Blitz January 03 Early 2023"]
[White "Wilson, Elvin"]
[Black "Skvortsov, Andrei"]
[WhiteFideId "2014874"]
[BlackFideId "24108600"]
[WhiteElo "2183"]
[BlackElo "2313"]
[Result "0-1"]
[Round "01"]
[TimeControl "180+2"]
[Date "2023.01.03"]
[WhiteClock "0:00:13"]
[BlackClock "0:01:39"]

1. c4 {[%clk 0:02:59]}  c5 {[%clk 0:02:53]} 2. g3 {[%clk 0:02:59]}  Nf6 {[%clk 0:02:53]} 3. Bg2 {[%clk 0:02:59]}  g6 {[%clk 0:02:53]} 4. Nc3 {[%clk 0:02:59]}  Bg7 {[%clk 0:02:53]} 5. e4 {[%clk 0:03:00]}  e5 {[%clk 0:02:53]} 6. Nge2 {[%clk 0:03:00]}  Nc6 {[%clk 0:02:53]} 7. O-O {[%clk 0:03:00]}  Nd4 {[%clk 0:02:54]} 8. d3 {[%clk 0:02:59]}  d6 {[%clk 0:02:53]} 9. Rb1 {[%clk 0:02:57]}  O-O {[%clk 0:02:52]} 10. b4 {[%clk 0:02:55]}  Nd7 {[%clk 0:02:48]} 11. Nd5 {[%clk 0:02:53]}  f5 {[%clk 0:02:48]} 12. Bg5 {[%clk 0:02:50]}  Qxg5 {[%clk 0:02:44]} 13. Nxd4 {[%clk 0:02:41]}  cxd4 {[%clk 0:02:34]} 14. Nc7 {[%clk 0:02:36]}  Rb8 {[%clk 0:02:30]} 15. Ne6 {[%clk 0:02:36]}  Qe7 {[%clk 0:02:30]} 16. Nxf8 {[%clk 0:02:36]}  Nxf8 {[%clk 0:02:29]} 17. exf5 {[%clk 0:02:36]}  Bxf5 {[%clk 0:02:28]} 18. Qa4 {[%clk 0:02:35]}  b6 {[%clk 0:02:27]} 19. Qb3 {[%clk 0:02:24]}  Kh8 {[%clk 0:02:25]} 20. Rbe1 {[%clk 0:02:24]}  Qf7 {[%clk 0:02:20]} 21. f4 {[%clk 0:02:21]}  exf4 {[%clk 0:02:20]} 22. Rxf4 {[%clk 0:02:19]}  Be5 {[%clk 0:02:18]} 23. Rff1 {[%clk 0:02:16]}  Qd7 {[%clk 0:02:16]} 24. b5 {[%clk 0:02:11]}  Ne6 {[%clk 0:02:15]} 25. Bc6 {[%clk 0:01:59]}  Qg7 {[%clk 0:02:12]} 26. Qd1 {[%clk 0:01:56]}  Nc5 {[%clk 0:02:04]} 27. Be4 {[%clk 0:01:37]}  Nxe4 {[%clk 0:02:02]} 28. dxe4 {[%clk 0:01:37]}  Be6 {[%clk 0:02:02]} 29. Qd3 {[%clk 0:01:34]}  Rc8 {[%clk 0:02:01]} 30. Rc1 {[%clk 0:01:34]}  h5 {[%clk 0:02:00]} 31. Kh1 {[%clk 0:01:14]}  Qe7 {[%clk 0:01:55]} 32. Rf2 {[%clk 0:01:07]}  Kg8 {[%clk 0:01:48]} 33. Kg2 {[%clk 0:01:00]}  Qg5 {[%clk 0:01:45]} 34. Rcc2 {[%clk 0:00:53]}  h4 {[%clk 0:01:42]} 35. Qd2 {[%clk 0:00:20]}  Qxd2 {[%clk 0:01:39]} 36. Rfxd2 {[%clk 0:00:20]}  hxg3 {[%clk 0:01:39]} 37. hxg3 {[%clk 0:00:20]}  Rxc4 {[%clk 0:01:40]} 38. Rxc4 {[%clk 0:00:19]}  Bxc4 {[%clk 0:01:41]} 39. a4 {[%clk 0:00:19]}  Bb3 {[%clk 0:01:40]} 40. a5 {[%clk 0:00:17]}  bxa5 {[%clk 0:01:40]} 41. Rb2 {[%clk 0:00:17]}  a4 {[%clk 0:01:39]} 42. Kf3 {[%clk 0:00:15]}  d3 {[%clk 0:01:38]} 43. Rd2 {[%clk 0:00:13]}  Bc4 {[%clk 0:01:39]} 0-1


[Site "https://www.chess.com"]